fUSD/lending_fUSD_20240222
["ID","MTS","AMOUNT","RATE_DAILY","PERIOD"]
[314900907,1708625536237,-2025.9,0.00033972,4]
[314900908,1708625536247,-500.0,0.00033972,4]
[314900909,1708625536256,-734.04,0.00033972,4]
[314900910,1708625536265,-16810.08,0.00033972,4]
[314900911,1708625536274,-500.0,0.00033972,4]
[314900912,1708625536284,-3953.01,0.00033972,4]
[314900913,1708625536294,-1357.88,0.00033972,4]
[314900914,1708625536303,-500.0,0.00033972,4]
[314900915,1708625536313,-523.91,0.00033972,4]
[314900916,1708625536322,-500.0,0.00033972,4]
[314900917,1708625536332,-500.0,0.00033972,4]
[314900918,1708625536341,-500.0,0.00033972,4]
[314900919,1708625536351,-1306.91,0.00033972,4]
[314900920,1708625536361,-1319.7,0.00033972,4]
[314900921,1708625536371,-2921.05,0.00033972,4]
[314900922,1708625536380,-4012.02,0.00033972,4]
[314900923,1708625536389,-3520.12,0.00033972,4]
[314900924,1708625536399,-1203.69,0.00033972,4]
[314900925,1708625536416,-7422.46,0.00033972,4]
[314900926,1708625536435,-2325.63,0.00033972,4]
[314900927,1708625536450,-595.22,0.00033972,4]
[314900928,1708625536470,-500.0,0.00033972,4]
[314900929,1708625536486,-500.0,0.00033972,4]
[314900930,1708625536502,-578.71,0.00033972,4]
[314900931,1708625536518,-896.84,0.00033972,4]
[314900932,1708625536535,-500.0,0.00033972,4]
[314900933,1708625536552,-579.72,0.00033972,4]
[314900934,1708625536571,-500.0,0.00033972,4]
[314900935,1708625536587,-802.17,0.00033972,4]
[314900936,1708625536606,-999.86,0.00033972,4]
[314900937,1708625536625,-2641.23,0.00033972,4]
[314900938,1708625536637,-3363.68,0.00033972,4]
[314900939,1708625536653,-2799.21,0.00033972,4]
[314900940,1708625536670,-500.0,0.00033972,4]
[314900941,1708625536682,-500.0,0.00033972,4]
[314900942,1708625536700,-500.0,0.00033972,4]
[314900943,1708625536715,-522.87,0.00033972,4]
[314900944,1708625536729,-879.41,0.00033972,4]
[314900945,1708625536744,-922.6,0.00033972,4]
[314900946,1708625536760,-7827.29,0.00033972,4]
[314900947,1708625536775,-1225.83,0.00033972,4]
[314900948,1708625536791,-708.41,0.00033972,4]
[314900949,1708625536805,-4523.83,0.00033972,4]
[314900950,1708625536819,-1375.3,0.00033972,4]
[314900951,1708625536835,-4862.62,0.00033972,4]
[314900952,1708625536850,-735.21,0.00033972,4]
[314900953,1708625536866,-757.98,0.00033972,4]
[314900954,1708625536882,-346.61,0.00033972,4]
[314900955,1708625536897,-500.0,0.00033972,4]
[314900956,1708625536912,-3270.53,0.00033972,4]
[314900957,1708625536928,-2130.22,0.00033972,4]
[314900958,1708625536942,-876.68,0.00033972,4]
[314900959,1708625536957,-3006.31,0.00033972,4]
[314900960,1708625536972,-1542.31,0.00033972,4]
[314900961,1708625536987,-5087.25,0.00033972,4]
[314900962,1708625537002,-869.35,0.00033972,4]
[314900963,1708625537015,-500.0,0.00033972,4]
[314900964,1708625537030,-500.0,0.00033972,4]
[314900965,1708625537044,-1701.19,0.00033972,4]
[314900966,1708625537059,-1144.38,0.00033972,4]
[314900967,1708625537073,-10191.48,0.00033972,4]
[314900968,1708625537088,-14297.7,0.00033972,4]
[314900969,1708625537102,-870.84,0.00033972,4]
[314900970,1708625537117,-1739.37,0.00033972,4]
[314900971,1708625537131,-500.0,0.00033972,4]
[314900972,1708625537145,-1219.49,0.00033972,4]
[314900973,1708625537159,-500.0,0.00033972,4]
[314900974,1708625537173,-500.0,0.00033972,4]
[314900975,1708625537187,-662.36,0.00033972,4]
[314900976,1708625537202,-5320.7,0.00033972,4]
[314900977,1708625537216,-1389.1,0.00033972,4]
[314900978,1708625537231,-1178.0,0.00033972,4]
[314900979,1708625537245,-500.0,0.00033972,4]
[314900980,1708625537259,-4535.27,0.00033972,4]
[314900981,1708625537274,-1510.56,0.00033972,4]
[314900982,1708625537289,-574.08,0.00033972,4]
[314900983,1708625537302,-913.43,0.00033972,4]
[314900984,1708625537316,-957.57,0.00033972,4]
[314900985,1708625537331,-1132.71,0.00033972,4]
[314900986,1708625537345,-1840.14,0.00033972,4]
[314900987,1708625537359,-500.0,0.00033972,4]
[314900988,1708625537373,-500.0,0.00033972,4]
[314900989,1708625537387,-1105.16,0.00033972,4]
[314900990,1708625537403,-8688.16,0.00033972,4]
[314900991,1708625537418,-856.33,0.00033972,4]
[314900992,1708625537431,-1035.38,0.00033972,4]
[314900993,1708625537444,-500.0,0.00033972,4]
[314900994,1708625537459,-597.54,0.00033972,4]
[314900995,1708625537475,-1031.07,0.00033972,4]
[314900996,1708625537490,-500.0,0.00033972,4]
[314900997,1708625537505,-607.73,0.00033972,4]
[314900998,1708625537519,-4152.62,0.00033972,4]
[314900999,1708625537533,-4573.59,0.00033972,4]
[314901000,1708625537549,-5220.29,0.00033972,4]
[314901001,1708625537563,-1750.52,0.00033972,4]
[314901002,1708625537577,-500.0,0.00033972,4]
[314901003,1708625537591,-740.42,0.00033972,4]
[314901004,1708625537605,-579.71,0.00033972,4]
[314901005,1708625537620,-543.8,0.00033972,4]
[314901006,1708625537635,-27929.76,0.00033972,4]
[314901007,1708625537648,-500.0,0.00033972,4]
[314901008,1708625537664,-2617.91,0.00033972,4]
[314901009,1708625537678,-769.4,0.00033972,4]
[314901010,1708625537691,-500.0,0.00033972,4]
[314901011,1708625537704,-500.0,0.00033972,4]
[314901012,1708625537718,-3104.43,0.00033972,4]
[314901013,1708625537732,-2557.13,0.00033972,4]
[314901014,1708625537747,-763.62,0.00033972,4]
[314901015,1708625537762,-31733.49,0.00033972,4]
[314901016,1708625537776,-635.4,0.00033972,4]
[314901017,1708625537791,-1402.56,0.00033972,4]
[314901018,1708625537805,-500.0,0.00033972,4]
[314901019,1708625537820,-10076.31,0.00033972,4]
[314901020,1708625537833,-719.16,0.00033972,4]
[314901021,1708625537847,-587.98828694,0.00033972,4]
[314901022,1708625537861,-549.71,0.00033972,4]
[314901023,1708625537874,-815.24,0.00033972,4]
[314901024,1708625537891,-540.22,0.00033972,4]
[314901025,1708625537904,-10365.29,0.00033972,4]
[314901026,1708625537918,-1908.5,0.00033972,4]
[314901027,1708625537934,-500.0,0.00033972,4]
[314901028,1708625537948,-1930.81,0.00033972,4]
[314901029,1708625537963,-4645.8,0.00033972,4]
[314901030,1708625537978,-1831.86,0.00033972,4]
[314901031,1708625537992,-1019.93,0.00033972,4]
[314901032,1708625538006,-500.0,0.00033972,4]
[314901033,1708625538020,-831.39,0.00033972,4]
[314901034,1708625538034,-1113.04,0.00033972,4]
[314901035,1708625538049,-2272.34,0.00033972,4]
[314901036,1708625538063,-703.63,0.00033972,4]
[314901037,1708625538077,-899.16,0.00033972,4]
[314901038,1708625538092,-19048.88,0.00033972,4]
[314901039,1708625538106,-612.06,0.00033972,4]
[314901040,1708625538120,-1790.32,0.00033972,4]
[314901041,1708625538134,-500.0,0.00033972,4]
[314901042,1708625538148,-3342.93,0.00033972,4]
[314901043,1708625538162,-1083.4,0.00033972,4]
[314901044,1708625538177,-6652.12,0.00033972,4]
[314901045,1708625538191,-3448.92,0.00033972,4]
[314901046,1708625538205,-500.0,0.00033972,4]
[314901047,1708625538220,-500.0,0.00033972,4]
[314901048,1708625538240,-566.02,0.00033972,4]
[314901049,1708625538254,-2397.11,0.00033972,4]
[314901050,1708625538269,-588.46,0.00033972,4]
[314901051,1708625538283,-668.81,0.00033972,4]
[314901052,1708625538298,-504.65,0.00033972,4]
[314901053,1708625538311,-890.14,0.00033972,4]
[314901054,1708625538327,-1569.54,0.00033972,4]
[314901055,1708625538341,-2839.46,0.00033972,4]
[314901056,1708625538355,-321.50791298,0.00033972,4]
[314901057,1708625538370,-500.0,0.00033972,4]
[314901058,1708625538384,-1599.27,0.00033972,4]
[314901059,1708625538403,-12262.15,0.00033972,4]
[314901060,1708625538419,-500.0,0.00033972,4]
[314901061,1708625538434,-603.26,0.00033972,4]
[314901062,1708625538449,-684.48,0.00033972,4]
[314901063,1708625538465,-4428.36,0.00033972,4]
[314901064,1708625538479,-500.0,0.00033972,4]
[314901065,1708625538493,-2710.14,0.00033972,4]
[314901066,1708625538509,-11511.86,0.00033972,4]
[314901067,1708625538522,-13857.62,0.00033972,4]
[314901068,1708625538538,-1092.92,0.00033972,4]
[314901069,1708625538554,-500.0,0.00033972,4]
[314901070,1708625538568,-1594.69,0.00033972,4]
[314901071,1708625538583,-500.0,0.00033972,4]
[314901072,1708625538598,-935.58,0.00033972,4]
[314901073,1708625538612,-543.61,0.00033972,4]
[314901074,1708625538628,-787.78,0.00033972,4]
[314901075,1708625538643,-500.0,0.00033972,4]
[314901076,1708625538658,-500.0,0.00033972,4]
[314901077,1708625538673,-12927.16,0.00033972,4]
[314901078,1708625538687,-952.32,0.00033972,4]
[314901079,1708625538701,-500.0,0.00033972,4]
[314901080,1708625538715,-15657.06,0.00033972,4]
[314901081,1708625538730,-1397.23,0.00033972,4]
[314901082,1708625538743,-734.09,0.00033972,4]
[314901083,1708625538758,-500.0,0.00033972,4]
[314901084,1708625538772,-500.0,0.00033972,4]
[314901085,1708625538788,-500.0,0.00033972,4]
[314901086,1708625539097,-638.64,0.00033972,4]
[314901087,1708625539117,-1622.99,0.00033972,4]
[314901088,1708625539127,-500.0,0.00033972,4]
[314901089,1708625539136,-2266.68,0.00033972,4]
[314901090,1708625539146,-2464.49,0.00033972,4]
[314901091,1708625539156,-1572.14,0.00033972,4]
[314901092,1708625539166,-500.0,0.00033972,4]
[314901093,1708625539176,-1658.88,0.00033972,4]
[314901094,1708625539186,-802.87,0.00033972,4]
[314901095,1708625539195,-1524.56,0.00033972,4]
[314901096,1708625539204,-631.35,0.00033972,4]
[314901097,1708625539214,-500.0,0.00033972,4]
[314901098,1708625539223,-500.0,0.00033972,4]
[314901099,1708625539233,-795.52,0.00033972,4]
[314901100,1708625539243,-6459.32,0.00033972,4]
[314901101,1708625539252,-3708.97,0.00033972,4]
[314901102,1708625539262,-1063.1,0.00033972,4]
[314901103,1708625539271,-833.35,0.00033972,4]
[314901104,1708625539281,-8548.5,0.00033972,4]
[314901105,1708625539291,-619.16,0.00033972,4]
[314901106,1708625539301,-8589.16,0.00033972,4]
[314901107,1708625539310,-725.96,0.00033972,4]
[314901108,1708625539320,-559.93,0.00033972,4]
[314901109,1708625539329,-500.0,0.00033972,4]
[314901110,1708625539339,-500.0,0.00033972,4]
[314901111,1708625539349,-885.04,0.00033972,4]
[314901112,1708625539359,-695.88,0.00033972,4]
[314901113,1708625539369,-491.91140587,0.00033972,4]
[314901114,1708625539379,-1152.72,0.00033972,4]
[314901115,1708625539388,-1529.13,0.00033972,4]
[314901116,1708625539398,-3657.93,0.00033972,4]
[314901117,1708625539410,-1521.37,0.00033972,4]
[314901118,1708625539420,-500.0,0.00033972,4]
[314901119,1708625539430,-649.89,0.00033972,4]
[314901120,1708625539440,-1012.78,0.00033972,4]
[314901121,1708625539450,-500.0,0.00033972,4]
[314901122,1708625539460,-500.0,0.00033972,4]
[314901123,1708625539470,-982.4,0.00033972,4]
[314901124,1708625539480,-1281.51,0.00033972,4]
[314901125,1708625539489,-548.38,0.00033972,4]
[314901126,1708625539499,-757.3,0.00033972,4]
[314901127,1708625539508,-753.97,0.00033972,4]
[314901128,1708625539518,-2156.76,0.00033972,4]
[314901129,1708625539527,-2549.51,0.00033972,4]
[314901130,1708625539537,-2213.41,0.00033972,4]
[314901131,1708625539546,-500.0,0.00033972,4]
[314901132,1708625539556,-4381.7,0.00033972,4]
[314901133,1708625539566,-5006.44,0.00033972,4]
[314901134,1708625539576,-500.0,0.00033972,4]
[314901135,1708625539586,-500.0,0.00033972,4]
[314901136,1708625539595,-1083.67,0.00033972,4]
[314901137,1708625539604,-2631.91,0.00033972,4]
[314901138,1708625539614,-500.0,0.00033972,4]
[314901139,1708625539623,-928.82,0.00033972,4]
[314901140,1708625539633,-1050.11,0.00033972,4]
[314901141,1708625539642,-988.3,0.00033972,4]
[314901142,1708625539652,-553.85,0.00033972,4]
[314901143,1708625539661,-1569.8,0.00033972,4]
[314901144,1708625539671,-1347.04,0.00033972,4]
[314901145,1708625539680,-1930.76,0.00033972,4]
[314901146,1708625539689,-1578.95,0.00033972,4]
[314901147,1708625539700,-654.06,0.00033972,4]
[314901148,1708625539710,-1152.52,0.00033972,4]
[314901149,1708625539720,-1562.64,0.00033972,4]
[314901150,1708625539730,-13046.67,0.00033972,4]
[314901151,1708625539739,-554.48,0.00033972,4]
[314901152,1708625539749,-500.0,0.00033972,4]
[314901153,1708625539758,-5718.46,0.00033972,4]
[314901154,1708625539768,-585.24,0.00033972,4]
[314901155,1708625539777,-4320.81,0.00033972,4]
[314901156,1708625539787,-1143.61,0.00033972,4]
[314901157,1708625539796,-3703.9,0.00033972,4]
[314901158,1708625539805,-500.0,0.00033972,4]
[314901159,1708625539815,-845.41,0.00033972,4]
[314901160,1708625539824,-500.0,0.00033972,4]
[314901161,1708625539833,-1239.69,0.00033972,4]
[314901162,1708625539842,-1082.3,0.00033972,4]
[314901163,1708625539851,-842.27,0.00033972,4]
[314901164,1708625539860,-968.09,0.00033972,4]
[314901165,1708625539870,-2562.83,0.00033972,4]
[314901166,1708625539879,-500.0,0.00033972,2]
[314901167,1708625539892,-2763.17,0.00033972,4]
[314901168,1708625539901,-1672.02,0.00033972,4]
[314901169,1708625539910,-500.0,0.00033972,4]
[314901170,1708625539920,-850.13,0.00033972,4]
[314901171,1708625539930,-668.88,0.00033972,4]
[314901172,1708625539939,-1634.02,0.00033972,4]
[314901173,1708625539948,-500.0,0.00033972,4]
[314901174,1708625539957,-3311.96,0.00033972,4]
[314901175,1708625539969,-1279.14,0.00033972,4]
[314901176,1708625539979,-930.33,0.00033972,4]
[314901177,1708625539988,-2625.59,0.00033972,4]
[314901178,1708625539998,-619.14,0.00033972,4]
[314901179,1708625540007,-1635.09,0.00033972,4]
[314901180,1708625540017,-2609.74,0.00033972,4]
[314901181,1708625540026,-3610.42,0.00033972,4]
[314901182,1708625540035,-967.22,0.00033972,4]
[314901183,1708625540045,-923.8,0.00033972,4]
[314901184,1708625540054,-1343.66,0.00033972,4]
[314901185,1708625540064,-1380.71,0.00033972,4]
[314901186,1708625540073,-1594.46,0.00033972,4]
[314901187,1708625540083,-1079.87,0.00033972,4]
[314901188,1708625540092,-8671.59,0.00033972,4]
[314901189,1708625540101,-173.7514263,0.00034,5]
[314901190,1708625540110,-600.0,0.00034,35]
[314901191,1708625540120,-981.5344677,0.00034,2]
[314901192,1708625540129,-7357.26522644,0.00034,3]
[314901193,1708625540138,-205.0,0.00034,30]
[314901194,1708625540148,-300.0,0.00034,35]
[314901195,1708625540158,-157.0,0.00034,2]
[314901196,1708625540167,-1012.0,0.00034,7]
[314901197,1708625540177,-5176.7423396,0.00034086,2]
[314901198,1708625540186,-484.29,0.00034089,2]
[314901199,1708625540194,-173.963344,0.00034089,2]
[314901200,1708625540204,-200.0,0.000341,7]
[314901201,1708625540213,-500.0,0.00034109,4]
[314901202,1708625540223,-500.0,0.00034109,4]
[314901203,1708625540233,-500.0,0.00034109,4]
[314901204,1708625540243,-500.0,0.00034109,4]
[314901205,1708625540252,-295.48,0.00034109,4]
[314901206,1708625540261,-500.0,0.00034109,4]
[314901207,1708625540270,-500.0,0.00034109,4]
[314901208,1708625540280,-500.0,0.00034109,4]
[314901209,1708625540289,-500.0,0.00034109,4]
[314901210,1708625540298,-500.0,0.00034109,4]
[314901211,1708625540307,-500.0,0.00034109,4]
[314901212,1708625540317,-500.0,0.00034109,2]
[314901213,1708625540326,-197.17635871,0.00034109,4]
[314901214,1708625540336,-514.99,0.00034109,4]
[314901215,1708625540345,-500.0,0.00034109,4]
[314901216,1708625540355,-522.05068338,0.00034109,4]
[314901217,1708625540364,-555.79,0.00034109,4]
[314901218,1708625540373,-500.0,0.00034109,4]
[314901219,1708625540383,-500.0,0.00034109,4]
[314901220,1708625540392,-641.75,0.00034109,4]
[314901221,1708625540402,-500.0,0.00034109,4]
[314901222,1708625540411,-750.74,0.00034109,4]
[314901223,1708625540421,-500.0,0.00034109,4]
[314901224,1708625540431,-500.0,0.00034109,4]
[314901225,1708625540441,-500.0,0.00034109,4]
[314901226,1708625540450,-500.0,0.00034109,4]
[314901227,1708625540460,-542.31,0.00034109,4]
[314901228,1708625540471,-500.0,0.00034109,4]
[314901229,1708625540480,-621.21,0.00034109,4]
[314901230,1708625540489,-500.0,0.00034109,4]
[314901231,1708625540498,-500.0,0.00034109,4]
[314901232,1708625540508,-377.05182623,0.00034109,4]
[314901233,1708625540518,-551.07,0.00034109,4]
[314901234,1708625540527,-744.09,0.00034109,4]
[314901235,1708625540536,-500.0,0.00034109,4]
[314901236,1708625540546,-500.0,0.00034109,4]
[314901237,1708625540555,-500.0,0.00034109,4]
[314901238,1708625540564,-573.53,0.00034109,4]
[314901239,1708625540573,-500.0,0.00034109,4]
[314901240,1708625540583,-500.0,0.00034109,4]
[314901241,1708625540592,-500.0,0.00034109,4]
[314901242,1708625540602,-500.0,0.00034109,4]
[314901243,1708625540611,-500.0,0.00034109,4]
[314901244,1708625540620,-500.0,0.00034109,4]
[314901245,1708625540630,-500.0,0.00034109,4]
[314901246,1708625540639,-500.0,0.00034109,4]
[314901247,1708625540649,-500.0,0.00034109,4]
[314901248,1708625540658,-500.0,0.00034109,4]
[314901249,1708625540667,-524.07,0.00034109,4]
[314901250,1708625540676,-500.0,0.00034109,4]
[314901251,1708625540686,-951.85,0.00034109,4]
[314901252,1708625540694,-500.0,0.00034109,4]
[314901253,1708625540704,-926.28,0.00034109,4]
[314901254,1708625540713,-529.22,0.00034109,4]
[314901255,1708625540723,-500.0,0.00034109,4]
[314901256,1708625540732,-744.11,0.00034109,4]
[314901257,1708625540742,-500.0,0.00034109,4]
[314901258,1708625540751,-193.12681659,0.00034109,4]
[314901259,1708625540760,-500.0,0.00034109,4]
[314901260,1708625540769,-1143.73,0.00034109,4]
[314901261,1708625540778,-500.0,0.00034109,4]
[314901262,1708625540788,-500.0,0.00034109,4]
[314901263,1708625540797,-500.0,0.00034109,4]
[314901264,1708625540806,-779.36,0.00034109,4]
[314901265,1708625540815,-635.41,0.00034109,4]
[314901266,1708625540824,-555.19,0.00034109,4]
[314901267,1708625540834,-500.0,0.00034109,4]
[314901268,1708625540843,-369.48971528,0.00034109,4]
[314901269,1708625540852,-500.0,0.00034109,4]
[314901270,1708625540862,-500.0,0.00034109,4]
[314901271,1708625540872,-451.25203803,0.00034109,4]
[314901272,1708625540884,-822.26,0.00034109,4]
[314901273,1708625540893,-769.66,0.00034109,4]
[314901274,1708625540902,-500.0,0.00034109,4]
[314901275,1708625540912,-500.0,0.00034109,4]
[314901276,1708625540922,-889.62,0.00034109,4]
[314901277,1708625540933,-634.08,0.00034109,4]
[314901278,1708625540942,-500.0,0.00034109,4]
[314901279,1708625540952,-567.01,0.00034109,4]
[314901280,1708625540962,-721.11,0.00034109,4]
[314901281,1708625540972,-653.98,0.00034109,4]
[314901282,1708625540982,-659.59,0.00034109,4]
[314901283,1708625540992,-239.99567517,0.00034109,4]
[314901284,1708625541002,-951.61,0.00034109,4]
[314901285,1708625541011,-627.93,0.00034109,4]
[314901286,1708625541021,-677.11,0.00034109,4]
[314901287,1708625541031,-668.92,0.00034109,4]
[314901288,1708625541040,-746.18,0.00034109,4]
[314901289,1708625541049,-655.97,0.00034109,4]
[314901290,1708625541058,-500.0,0.00034109,4]
[314901291,1708625541068,-329.38375615,0.00034109,4]
[314901292,1708625541078,-944.62,0.00034109,4]
[314901293,1708625541089,-1016.3,0.00034109,4]
[314901294,1708625541098,-500.0,0.00034109,4]
[314901295,1708625541108,-500.0,0.00034109,4]
[314901296,1708625541117,-500.0,0.00034109,4]
[314901297,1708625541127,-500.0,0.00034109,4]
[314901298,1708625541136,-804.18,0.00034109,4]
[314901299,1708625541145,-535.66,0.00034109,4]
[314901300,1708625541154,-936.27,0.00034109,4]
[314901301,1708625541163,-500.0,0.00034109,4]
[314901302,1708625541172,-573.6,0.00034109,4]
[314901303,1708625541182,-500.0,0.00034109,4]
[314901304,1708625541191,-573.73,0.00034109,4]
[314901305,1708625541201,-906.98,0.00034109,4]
[314901306,1708625541210,-625.48,0.00034109,4]
[314901307,1708625541221,-619.25,0.00034109,4]
[314901308,1708625541230,-802.24,0.00034109,4]
[314901309,1708625541239,-553.85,0.00034109,4]
[314901310,1708625541249,-951.64,0.00034109,4]
[314901311,1708625541258,-500.0,0.00034109,4]
[314901312,1708625541268,-694.67,0.00034109,4]
[314901313,1708625541278,-991.06,0.00034109,4]
[314901314,1708625541287,-676.95,0.00034109,4]
[314901315,1708625541297,-500.0,0.00034109,4]
[314901316,1708625541306,-764.63,0.00034109,4]
[314901317,1708625541316,-508.78,0.00034109,4]
[314901318,1708625541326,-500.0,0.00034109,4]
[314901319,1708625541336,-500.26874713,0.00034109,4]
[314901320,1708625541345,-473.014,0.00034109,2]
[314901321,1708625541355,-802.5,0.00034109,4]
[314901322,1708625541365,-664.95,0.00034109,4]
[314901323,1708625541375,-692.13,0.00034109,4]
[314901324,1708625541384,-632.57,0.00034109,4]
[314901325,1708625541394,-509.92,0.00034109,4]
[314901326,1708625541404,-500.0,0.00034109,4]
[314901327,1708625541413,-165.33502846,0.00034109,4]
[314901328,1708625541423,-607.02,0.00034109,4]
[314901329,1708625541433,-792.22,0.00034109,4]
[314901330,1708625541443,-500.0,0.00034109,4]
[314901331,1708625541452,-1057.84,0.00034109,4]
[314901332,1708625541462,-500.0,0.00034109,4]
[314901333,1708625541473,-967.9,0.00034109,4]
[314901334,1708625541482,-1015.71,0.00034109,4]
[314901335,1708625541492,-500.0,0.00034109,4]
[314901336,1708625541501,-500.0,0.00034109,4]
[314901337,1708625541511,-500.0,0.00034109,4]
[314901338,1708625541520,-1057.91,0.00034109,4]
[314901339,1708625541530,-500.0,0.00034109,2]
[314901340,1708625541540,-1562.84,0.00034109,4]
[314901341,1708625541549,-908.7,0.00034109,4]
[314901342,1708625541559,-574.22,0.00034109,4]
[314901343,1708625541568,-1195.95,0.00034109,4]
[314901344,1708625541578,-525.71416077,0.00034109,4]
[314901345,1708625541587,-711.8,0.00034109,4]
[314901346,1708625541597,-643.93,0.00034109,4]
[314901347,1708625541606,-500.0,0.00034109,4]
[314901348,1708625541616,-690.36,0.00034109,4]
[314901349,1708625541625,-582.2,0.00034109,4]
[314901350,1708625541635,-623.27,0.00034109,4]
[314901351,1708625541645,-808.11,0.00034109,4]
[314901352,1708625541654,-500.0,0.00034109,4]
[314901353,1708625541664,-955.15,0.00034109,4]
[314901354,1708625541673,-500.0,0.00034109,2]
[314901355,1708625541683,-520.41,0.00034109,4]
[314901356,1708625541692,-500.0,0.00034109,4]
[314901357,1708625541701,-642.76,0.00034109,4]
[314901358,1708625541711,-500.0,0.00034109,4]
[314901359,1708625541721,-500.0,0.00034109,4]
[314901360,1708625541731,-500.0,0.00034109,4]
[314901361,1708625541741,-814.72,0.00034109,4]
[314901362,1708625541750,-763.81,0.00034109,4]
[314901363,1708625541760,-500.0,0.00034109,4]
[314901364,1708625541770,-920.28,0.00034109,4]
[314901365,1708625541779,-595.79,0.00034109,4]
[314901366,1708625541788,-616.74,0.00034109,4]
[314901367,1708625541797,-704.13,0.00034109,4]
[314901368,1708625541807,-693.29,0.00034109,4]
[314901369,1708625541816,-500.0,0.00034109,4]
[314901370,1708625541826,-970.8,0.00034109,4]
[314901371,1708625541835,-523.23,0.00034109,4]
[314901372,1708625541845,-569.97,0.00034109,4]
[314901373,1708625541854,-552.1,0.00034109,4]
[314901374,1708625541864,-546.34,0.00034109,4]
[314901375,1708625541875,-500.0,0.00034109,4]
[314901376,1708625541886,-597.14,0.00034109,4]
[314901377,1708625541895,-936.39,0.00034109,4]
[314901378,1708625541906,-500.0,0.00034109,4]
[314901379,1708625541915,-500.0,0.00034109,4]
[314901380,1708625541927,-500.0,0.00034109,4]
[314901381,1708625541936,-1000.0,0.00034109,7]
[314901382,1708625541945,-1322.67,0.00034109,4]
[314901383,1708625541956,-513.58,0.00034109,4]
[314901384,1708625541967,-500.0,0.00034109,4]
[314901385,1708625541977,-500.0,0.00034109,4]
[314901386,1708625541986,-500.0,0.00034109,4]
[314901387,1708625541995,-652.66,0.00034109,4]
[314901388,1708625542005,-500.0,0.00034109,4]
[314901389,1708625542014,-905.48,0.00034109,4]
[314901390,1708625542023,-500.0,0.00034109,4]
[314901391,1708625542033,-902.91,0.00034109,4]
[314901392,1708625542042,-500.0,0.00034109,4]
[314901393,1708625542052,-577.69,0.00034109,4]
[314901394,1708625542061,-500.0,0.00034109,4]
[314901395,1708625542072,-1566.96,0.00034109,4]
[314901396,1708625542081,-500.0,0.00034109,4]
[314901397,1708625542090,-885.89,0.00034109,4]
[314901398,1708625542099,-567.92,0.00034109,4]
[314901399,1708625542109,-642.58,0.00034109,4]
[314901400,1708625542119,-851.67,0.00034109,4]
[314901401,1708625542129,-500.0,0.00034109,2]
[314901402,1708625542138,-448.85648332,0.00034109,4]
[314901403,1708625542147,-572.75,0.00034109,4]
[314901404,1708625542157,-583.46,0.00034109,4]
[314901405,1708625542166,-1131.89,0.00034109,4]
[314901406,1708625542176,-500.0,0.00034109,4]